[Event "FIDE World Cup O12-A 2024"]
[Site "Batumi"]
[Date "2024.06.25"]
[Round "3.1"]
[White "Bulgak, Damir"]
[Black "Obidov, Biloliddin"]
[Result "0-1"]
[ECO "A37"]
[WhiteElo "1931"]
[BlackElo "1998"]
[Annotator "NA RC"]
[PlyCount "166"]
[EventDate "2024.06.23"]
[EventType "swiss"]
[EventCountry "GEO"]
[SourceTitle "playchess.com"]
[Source "ChessBase"]
[SourceQuality "1"]
[TimeControl "5400+30"]

1. Nf3 {[%emt 1:31:00]} c5 {[%emt 0:02:53]} 2. c4 {[%emt 0:00:00]} Nc6 {[%emt 0:00:11]} 3. Nc3 {[%emt 0:00:00]} e5 {[%emt 0:08:24]} 4. g3 {[%emt 0:00:00]} g6 {[%emt 0:00:23]} 5. Bg2 {[%emt 0:00:00]} Bg7 {[%emt 0:00:05]} 6. O-O {[%emt 0:00:00]} Nge7 {[%emt 0:00:11]} 7. e3 {[%emt 0:00:00]} O-O {[%emt 0:03:57] A37: Symmetrical English vs ...g6: 4 Bg2 Bg7 5 Nf3.} 8. d4 {[%emt 0:00:00]} exd4 {[%emt 0:02:51]} 9. exd4 {[%emt 0:00:00]} cxd4 {[%emt 0:00:02]} (9... Nxd4 $15 {is more appropriate.} 10. Re1 Ne6) 10. Nd5 {[%emt 0:00:00]} Nxd5 {[%emt 0:10:36]} 11. cxd5 {[%emt 0:00:00]} Ne7 {[%emt 0:00:09]} 12. Nxd4 {[%emt 0:00:00]} d6 {[%emt 0:00:12]} 13. Be3 {[%emt 0:00:00]} Nf5 {[%emt 0:00:29]} 14. Nxf5 {[%emt 0:00:00]} Bxf5 {[%emt 0:00:02]} 15. Bd4 {[%emt 0:00:00]} Rc8 {[%emt 0:14:00]} 16. Bxg7 {[%emt 0:00:00]} Kxg7 {[%emt 0:00:02]} 17. g4 {[%emt 0:00:00]} Bd7 {[%emt 0:05:35]} 18. Qd4+ {[%emt 0:00:00]} Qf6 {[%emt 0:00:11]} 19. Qxa7 {[%emt 0:00:00]} (19. Qxf6+ $17 Kxf6 20. h3) 19... Bxg4 {[%emt 0:02:43]} 20. Qxb7 {[%emt 0:00:00]} Rb8 $17 {[%emt 0:07:55]} ({Black should play} 20... Be2 $19 21. Rfe1 Rc2) 21. Qa7 {[%emt 0:00:00]} Rxb2 {[%emt 0:01:13]} 22. a4 {[%emt 0:00:00]} Rfb8 {[%emt 0:10:51]} 23. Ra3 {[%emt 0:00:00]} Be2 {[%emt 0:03:25]} 24. Rc1 {[%emt 0:00:00]} Rb1 {[%emt 0:09:19]} 25. Qe3 {[%emt 0:00:00]} Qb2 {[%emt 0:03:47]} 26. Qc3+ {[%emt 0:00:00]} Qxc3 {[%emt 0:00:34]} 27. Raxc3 {[%emt 0:00:00]} R8b4 {[%emt 0:00:42]} 28. h3 {[%emt 0:00:00]} Rxc1+ {[%emt 0:00:57]} 29. Rxc1 {[%emt 0:00:00]} Rxa4 {[%emt 0:00:05]} 30. Rc7 {[%emt 0:00:00]} g5 {[%emt 0:05:58]} 31. Re7 {[%emt 0:00:00]} Bd3 {[%emt 0:00:23]} 32. Bf3 {[%emt 0:00:00]} Bg6 {[%emt 0:00:18]} 33. Rd7 {[%emt 0:16:00]} Ra6 {[%emt 0:00:06]} 34. Kg2 {[%emt 0:00:00]} h5 {[%emt 0:00:51]} 35. Rc7 {[%emt 0:00:00]} Kf6 {[%emt 0:00:21]} 36. Rd7 {[%emt 0:00:00]} Ke5 {[%emt 0:01:14]} 37. Kg3 {[%emt 0:00:00]} h4+ {[%emt 0:00:22]} 38. Kg2 {[%emt 0:00:00]} Ra3 {[%emt 0:01:16]} 39. Rb7 {[%emt 0:00:00]} Rd3 {[%emt 0:01:42]} 40. Ra7 {[%emt 0:00:00]} Rd4 {[%emt 0:00:06]} 41. Rd7 {[%emt 0:04:00]} Rb4 {[%emt 0:01:29]} 42. Ra7 {[%emt 0:00:00]} Rf4 {[%emt 0:00:59]} 43. Re7+ {[%emt 0:00:00]} Kd4 {[%emt 0:00:26]} 44. Rd7 {[%emt 0:00:00]} Rf6 {[%emt 0:00:25]} 45. Re7 {[%emt 0:00:00]} Bf5 {[%emt 0:02:29]} 46. Re3 {[%emt 0:00:00]} Bd3 {[%emt 0:00:12]} 47. Kg1 {[%emt 0:00:00]} Bc4 {[%emt 0:00:47]} 48. Re4+ {[%emt 0:00:00]} Kc5 {[%emt 0:00:21]} 49. Bh5 {[%emt 0:00:21]} Bxd5 {[%emt 0:00:18]} 50. Ra4 {[%emt 0:00:01]} Rf5 {[%emt 0:01:09]} 51. Bg4 {[%emt 0:00:44]} Rf6 {[%emt 0:00:57]} 52. Bh5 {[%emt 0:00:13]} Kb5 {[%emt 0:00:26]} 53. Ra7 {[%emt 0:02:00]} Kb6 {[%emt 0:01:03]} 54. Rd7 {[%emt 0:00:45]} Kc5 {[%emt 0:00:19]} 55. Ra7 {[%emt 0:00:07]} Kd4 {[%emt 0:00:31]} 56. Ra5 {[%emt 0:00:26]} Ke5 {[%emt 0:00:31]} 57. Bd1 {[%emt 0:00:06]} Rf4 {[%emt 0:00:38]} 58. Bh5 {[%emt 0:01:31]} Ke6 {[%emt 0:01:00]} 59. Kf1 {[%emt 0:00:50]} f6 {[%emt 0:00:28]} 60. Ke2 {[%emt 0:00:55]} f5 {[%emt 0:00:34]} 61. Ra7 {[%emt 0:00:46]} Bg2 {[%emt 0:00:20]} 62. Rg7 {[%emt 0:00:23]} Bxh3 {[%emt 0:00:37]} 63. Rxg5 {[%emt 0:00:54]} Bg4+ {[%emt 0:00:01]} 64. f3 {[%emt 0:00:14]} Bxh5 {[%emt 0:00:11]} 65. Rxh5 {[%emt 0:00:04]} Ra4 {[%emt 0:00:36]} 66. Ke3 {[%emt 0:00:28]} Ke5 {[%emt 0:00:30]} 67. Rh8 {[%emt 0:00:09]} f4+ {[%emt 0:01:08]} 68. Kd3 {[%emt 0:01:13]} Ra3+ {[%emt 0:00:05]} 69. Ke2 {[%emt 0:00:04]} Kd4 {[%emt 0:00:24]} 70. Rxh4 {[%emt 0:01:18]} Ra2+ {[%emt 0:00:01]} 71. Kf1 {[%emt 0:00:06]} Ke3 {[%emt 0:00:07]} 72. Rh3 {[%emt 0:00:08]} d5 {[%emt 0:00:06]} 73. Rh5 {[%emt 0:00:25]} d4 {[%emt 0:00:10]} 74. Re5+ {[%emt 0:00:19]} Kxf3 {[%emt 0:00:10]} 75. Ke1 {[%emt 0:00:01]} d3 {[%emt 0:01:49]} 76. Rd5 {[%emt 0:00:43]} Ra1+ {[%emt 0:01:21]} 77. Kd2 {[%emt 0:00:09]} Kf2 {[%emt 0:00:09]} 78. Rf5 {[%emt 0:00:09]} f3 {[%emt 0:00:16]} 79. Rf8 {[%emt 0:00:03]} Ra7 {[%emt 0:01:16]} 80. Rf6 {[%emt 0:00:09]} Re7 {[%emt 0:00:11]} 81. Kxd3 {[%emt 0:00:07]} Rd7+ {[%emt 0:00:40]} 82. Ke4 {[%emt 0:00:08]} Ke2 {[%emt 0:00:24]} 83. Ra6 {[%emt 0:00:14]} f2 {[%emt 0:02:05]} 0-1

[Event "FIDE World Cup O12-A 2024"]
[Site "Batumi"]
[Date "2024.06.25"]
[Round "3.2"]
[White "Yang, ZiLong"]
[Black "Siddhanth Poonja"]
[Result "1/2-1/2"]
[ECO "B36"]
[WhiteElo "1874"]
[BlackElo "1958"]
[Annotator "NA RC"]
[PlyCount "97"]
[EventDate "2024.06.23"]
[EventType "swiss"]
[EventCountry "GEO"]
[SourceTitle "playchess.com"]
[Source "ChessBase"]
[SourceQuality "1"]
[TimeControl "5400+30"]

1. e4 {[%emt 0:00:30]} c5 {[%emt 0:00:21]} 2. Nf3 {[%emt 0:00:07]} g6 {[%emt 0:00:05]} 3. d4 {[%emt 0:00:33]} cxd4 {[%emt 0:00:07]} 4. Nxd4 {[%emt 0:00:04]} Nc6 {[%emt 0:00:18]} 5. c4 {[%emt 0:00:14]} Nf6 {[%emt 0:00:08]} 6. Nc3 {[%emt 0:00:24]} d6 {[%emt 0:00:11]} 7. f3 {[%emt 0:02:00]} Nxd4 {[%emt 0:00:12]} 8. Qxd4 {[%emt 0:00:10]} Bg7 {[%emt 0:00:09]} 9. Be3 {[%emt 0:00:31]} O-O {[%emt 0:00:09]} 10. Qd2 {[%emt 0:00:09]} Be6 {[%emt 0:00:12]} 11. Rc1 {[%emt 0:02:51]} Qa5 {[%emt 0:10:58]} 12. b3 {[%emt 0:02:17]} Rfc8 {[%emt 0:03:57]} 13. Be2 {[%emt 0:13:36]} a6 {[%emt 0:00:14]} 14. Nd5 {[%emt 0:24:11]} Qxd2+ {[%emt 0:00:52]} 15. Kxd2 {[%emt 0:00:04]} Bxd5 {[%emt 0:06:08]} 16. cxd5 {[%emt 0:02:39]} Nd7 {[%emt 0:00:09]} 17. f4 {[%emt 0:01:09] B36: Sicilian: Maroczy Bind: Gurgenidze System.} Kf8 {[%emt 0:11:04]} 18. Rxc8+ {[%emt 0:14:57]} Rxc8 {[%emt 0:00:08]} 19. Rc1 {[%emt 0:00:14]} Rxc1 {[%emt 0:03:00]} 20. Kxc1 $14 {[%emt 0:00:13]} e6 {[%emt 0:08:00]} 21. dxe6 {[%emt 0:01:16]} fxe6 {[%emt 0:00:07]} 22. g3 {[%emt 0:00:53]} Bc3 {[%emt 0:02:36]} 23. Bf3 {[%emt 0:10:45]} b5 {[%emt 0:08:45]} 24. Kc2 {[%emt 0:13:23]} Bb4 {[%emt 0:04:11]} 25. Kd3 {[%emt 0:00:06]} Ke7 {[%emt 0:01:38]} 26. h3 {[%emt 0:01:13]} Be1 {[%emt 0:09:39]} 27. g4 {[%emt 0:00:07]} h6 {[%emt 0:01:42]} 28. Ke2 {[%emt 0:00:23]} Bg3 {[%emt 0:01:01]} 29. Kf1 {[%emt 0:01:33]} a5 {[%emt 0:02:00]} 30. Be2 {[%emt 0:01:45]} b4 {[%emt 0:00:08]} 31. Kg2 {[%emt 0:00:04]} Be1 {[%emt 0:00:53]} 32. Bb5 {[%emt 0:00:12]} Nc5 {[%emt 0:01:10]} 33. Kf3 {[%emt 0:00:11]} Bh4 {[%emt 0:01:19]} 34. Bd4 {[%emt 0:06:24]} e5 {[%emt 0:04:51]} 35. Bxc5 {[%emt 0:01:44]} dxc5 {[%emt 0:00:06]} 36. f5 {[%emt 0:00:03]} gxf5 {[%emt 0:00:51]} 37. gxf5 {[%emt 0:00:03]} Bg5 {[%emt 0:00:19]} 38. Bc4 {[%emt 0:00:08]} Kd6 {[%emt 0:00:32]} 39. Kg4 {[%emt 0:00:08]} Ke7 {[%emt 0:00:05]} 40. Kf3 {[%emt 0:00:31]} Kf6 {[%emt 0:01:26]} 41. Kg4 {[%emt 0:00:12]} Bc1 {[%emt 0:00:04]} 42. Kh5 {[%emt 0:00:10]} Bd2 {[%emt 0:00:05]} 43. h4 {[%emt 0:00:08]} Bc1 {[%emt 0:00:03]} 44. Kg4 {[%emt 0:00:01]} Bd2 {[%emt 0:00:08]} 45. Kh5 {[%emt 0:00:19]} Bc1 {[%emt 0:00:07]} 46. Kg4 {[%emt 0:00:10]} Be3 {[%emt 0:00:05]} 47. Kf3 {[%emt 0:00:06]} Bd4 {[%emt 0:00:07]} 48. Kg4 {[%emt 0:00:43]} Bf2 {[%emt 0:00:09]} 49. Kh5 {[%emt 0:00:02]} 1/2-1/2

[Event "FIDE World Cup O12-A 2024"]
[Site "Batumi"]
[Date "2024.06.25"]
[Round "3.3"]
[White "Kristesiashvili, Andria"]
[Black "Syed Abdul Khader"]
[Result "0-1"]
[ECO "C22"]
[WhiteElo "1728"]
[BlackElo "2050"]
[Annotator "NA RC"]
[PlyCount "50"]
[EventDate "2024.06.23"]
[EventType "swiss"]
[EventCountry "GEO"]
[SourceTitle "playchess.com"]
[Source "ChessBase"]
[SourceQuality "1"]
[TimeControl "5400+30"]

1. e4 {[%emt 0:00:21]} e5 {[%emt 0:00:13]} 2. d4 {[%emt 0:00:09]} exd4 {[%emt 0:00:06]} 3. Qxd4 {[%emt 0:00:06]} Nc6 {[%emt 0:01:06]} 4. Qe3 {[%emt 0:00:07]} Bb4+ {[%emt 0:01:35]} 5. Nc3 {[%emt 0:00:51]} Nf6 {[%emt 0:00:19]} 6. Bd2 {[%emt 0:00:40]} O-O {[%emt 0:00:58]} 7. O-O-O {[%emt 0:03:13]} Re8 {[%emt 0:01:12]} 8. Qf4 {[%emt 0:00:21]} d6 {[%emt 0:23:50]} ({Better is} 8... Bxc3 $15 9. Bxc3 Rxe4 (9... Nxe4 10. Bc4 $11)) 9. f3 {[%emt 0:02:57]} Be6 {[%emt 0:04:03]} 10. Nge2 {[%emt 0:06:13]} h6 {[%emt 0:10:49]} 11. g4 {[%emt 0:06:30]} d5 {[%emt 0:01:29]} 12. exd5 {[%emt 0:15:31]} Bxd5 {[%emt 0:00:55]} 13. Qg3 $1 {[%emt 0:02:19]} Qd6 $11 {[%emt 0:14:07]} (13... Bxc3 $1 {feels stronger.} 14. Nxc3 (14. Bxc3 Qe7 $11) 14... Nd4) 14. Nf4 {[%emt 0:27:17]} Rad8 {[%emt 0:01:02]} 15. a3 {[%emt 0:06:42]} Bxf3 {[%emt 0:07:35]} 16. Qxf3 {[%emt 0:00:53]} Nd4 {[%emt 0:00:01]} 17. Qxb7 {[%emt 0:10:32]} Bxc3 {[%emt 0:00:24]} 18. bxc3 {[%emt 0:01:04]} Rb8 {[%emt 0:00:02]} 19. Qa6 {[%emt 0:00:47]} Rb6 {[%emt 0:00:06]} 20. Qxb6 {[%emt 0:01:13]} axb6 {[%emt 0:00:21]} 21. Kb2 {[%emt 0:00:59]} Nf3 {[%emt 0:01:03]} 22. Bg2 {[%emt 0:01:27]} Nxd2 {[%emt 0:00:16]} 23. Nd3 {[%emt 0:00:47]} Nc4+ {[%emt 0:00:14]} 24. Kb3 {[%emt 0:00:21]} Ne3 {[%emt 0:05:06]} 25. Rd2 {[%emt 0:00:27]} Nxg2 {[%emt 0:00:56]} 0-1

[Event "FIDE World Cup O12-A 2024"]
[Site "Batumi"]
[Date "2024.06.25"]
[Round "3.4"]
[White "Yin, Zeming"]
[Black "Guo, Ethan"]
[Result "1/2-1/2"]
[ECO "B94"]
[WhiteElo "1832"]
[BlackElo "2136"]
[Annotator "RC"]
[PlyCount "108"]
[EventDate "2024.06.23"]
[EventType "swiss"]
[EventCountry "GEO"]
[SourceTitle "playchess.com"]
[Source "ChessBase"]
[SourceQuality "1"]
[TimeControl "5400+30"]

1. e4 {[%emt 0:00:25]} c5 {[%emt 0:00:03]} 2. Nf3 {[%emt 0:00:02]} d6 {[%emt 0:00:05]} 3. d4 {[%emt 0:00:29]} cxd4 {[%emt 0:00:05]} 4. Nxd4 {[%emt 0:00:04]} Nf6 {[%emt 0:00:06]} 5. Nc3 {[%emt 0:00:05]} a6 {[%emt 0:00:03]} 6. Bg5 {[%emt 0:00:09]} Nbd7 {[%emt 0:00:08]} 7. Bc4 {[%emt 0:00:31]} e6 {[%emt 0:00:45]} 8. a4 {[%emt 0:03:02]} h6 {[%emt 0:04:55]} 9. Be3 {[%emt 0:01:27]} Qc7 {[%emt 0:01:19]} 10. Qe2 {[%emt 0:05:30]} Nc5 {[%emt 0:06:02]} 11. f3 {[%emt 0:04:51]} Be7 {[%emt 0:01:08]} 12. O-O {[%emt 0:01:01]} O-O {[%emt 0:00:21]} 13. a5 {[%emt 0:01:15]} Rd8 {[%emt 0:05:01]} 14. Qf2 {[%emt 0:19:23]} Ncxe4 {[%emt 0:08:07]} 15. fxe4 {[%emt 0:13:46]} Qxc4 {[%emt 0:00:07]} 16. Ra4 {[%emt 0:04:53]} Qc7 {[%emt 0:01:13]} 17. Qg3 {[%emt 0:05:16]} Kh7 {[%emt 0:03:07]} 18. Nf3 {[%emt 0:02:27]} Rf8 {[%emt 0:08:57]} 19. Bb6 {[%emt 0:03:32]} Qd7 {[%emt 0:02:23]} 20. Rd1 {[%emt 0:05:24]} Nh5 {[%emt 0:07:19]} 21. Qf2 {[%emt 0:04:23]} Qe8 {[%emt 0:01:37]} 22. Raa1 {[%emt 0:05:19]} Nf6 {[%emt 0:04:33]} 23. Qe2 {[%emt 0:02:40]} e5 {[%emt 0:01:46]} 24. Nd2 {[%emt 0:02:19]} Bg4 {[%emt 0:00:40]} 25. Nf3 {[%emt 0:00:29]} Rc8 {[%emt 0:00:41]} 26. h3 {[%emt 0:01:03]} Be6 {[%emt 0:00:08]} 27. Nd2 {[%emt 0:01:53]} Qc6 {[%emt 0:02:23]} 28. Nf1 {[%emt 0:01:03]} Bc4 {[%emt 0:02:01]} 29. Qf2 {[%emt 0:00:45]} Be6 {[%emt 0:00:15]} 30. Qe2 {[%emt 0:00:36]} Kg8 {[%emt 0:00:49]} 31. Ne3 {[%emt 0:00:42]} Rfe8 {[%emt 0:01:39]} 32. Qf3 {[%emt 0:01:02]} Bd8 {[%emt 0:01:35]} 33. Bxd8 {[%emt 0:01:22]} Rexd8 {[%emt 0:00:05]} 34. Rf1 {[%emt 0:00:32]} Qc5 {[%emt 0:03:17]} 35. Kh1 {[%emt 0:01:11]} Rc7 {[%emt 0:00:46]} 36. Qg3 {[%emt 0:01:07]} Kf8 {[%emt 0:07:24]} 37. Rf3 {[%emt 0:01:14]} Qb4 {[%emt 0:04:09]} 38. Raf1 {[%emt 0:01:54]} Qxb2 {[%emt 0:07:56]} 39. Rxf6 {[%emt 0:02:07]} gxf6 {[%emt 0:00:06]} 40. Ncd5 {[%emt 0:00:32]} Rc3 {[%emt 0:02:01]} 41. Qh4 {[%emt 0:01:04]} Rxe3 {[%emt 0:02:27]} 42. Qxf6 {[%emt 0:00:40]} Bxd5 {[%emt 0:00:11]} 43. Qxd8+ {[%emt 0:00:09]} Kg7 {[%emt 0:00:03]} 44. Qf6+ {[%emt 0:00:14]} Kh7 {[%emt 0:00:35]} 45. exd5 {[%emt 0:00:11]} Rg3 {[%emt 0:00:43]} 46. Qxf7+ {[%emt 0:00:21]} Rg7 {[%emt 0:00:04]} 47. Qf5+ {[%emt 0:00:20]} Kh8 {[%emt 0:00:17]} 48. Qf8+ {[%emt 0:00:22]} Kh7 {[%emt 0:00:09]} 49. Qf5+ {[%emt 0:00:08]} Kh8 {[%emt 0:15:26]} 50. Qf8+ Kh7 {[%emt 0:00:30]} 51. Rf7 {[%emt 0:06:46]} Qc1+ {[%emt 0:00:30]} 52. Kh2 Rxf7 53. Qxf7+ Kh8 54. Qf6+ {[%emt 0:00:00]} Kh7 {[%emt 0:00:00]} 1/2-1/2

[Event "FIDE World Cup O12-A 2024"]
[Site "Batumi"]
[Date "2024.06.25"]
[Round "3.5"]
[White "Wang, Ted"]
[Black "Yerzhanuly Yernur"]
[Result "1-0"]
[ECO "C00"]
[WhiteElo "2034"]
[BlackElo "1810"]
[Annotator "RC"]
[PlyCount "57"]
[EventDate "2024.06.23"]
[EventType "swiss"]
[EventCountry "GEO"]
[SourceTitle "playchess.com"]
[Source "ChessBase"]
[SourceQuality "1"]
[TimeControl "5400+30"]

1. e4 {[%emt 0:00:03]} e6 {[%emt 0:00:00]} 2. d3 {[%emt 0:00:10]} d5 {[%emt 0:00:09]} 3. Nd2 {[%emt 0:00:11]} c5 {[%emt 0:00:06]} 4. Ngf3 {[%emt 0:00:07]} Nf6 {[%emt 0:00:07]} 5. g3 {[%emt 0:00:04]} Nc6 {[%emt 0:00:07]} 6. Bg2 {[%emt 0:00:04]} Be7 {[%emt 0:00:07]} 7. O-O {[%emt 0:00:08]} b6 {[%emt 0:00:14]} 8. Re1 {[%emt 0:00:43]} Bb7 {[%emt 0:00:39]} 9. Qe2 {[%emt 0:00:12]} Qc7 {[%emt 0:00:45]} 10. c3 {[%emt 0:00:52]} O-O-O {[%emt 0:05:11]} 11. Nf1 {[%emt 0:00:28]} h6 {[%emt 0:03:44]} 12. Bf4 {[%emt 0:00:13]} Qd7 {[%emt 0:01:01]} 13. b4 {[%emt 0:00:42]} g5 {[%emt 0:02:39]} 14. Ne5 {[%emt 0:00:14]} Qe8 {[%emt 0:05:11]} 15. Nxc6 {[%emt 0:00:10]} Bxc6 {[%emt 0:00:37]} 16. Be5 {[%emt 0:00:48]} Rg8 {[%emt 0:01:46]} 17. bxc5 {[%emt 0:02:52]} bxc5 {[%emt 0:00:44]} 18. d4 {[%emt 0:09:43]} Nxe4 {[%emt 0:19:26]} 19. Qa6+ {[%emt 0:13:01]} Bb7 {[%emt 0:00:05]} 20. Qxa7 {[%emt 0:00:50]} Qc6 {[%emt 0:01:52]} 21. Rab1 {[%emt 0:06:22]} Bd6 {[%emt 0:00:11]} 22. Rb6 {[%emt 0:02:12]} Qc7 {[%emt 0:00:14]} 23. Reb1 {[%emt 0:03:32]} Rd7 {[%emt 0:00:48]} 24. Rxb7 {[%emt 0:00:47]} Qxb7 {[%emt 0:01:20]} 25. Rxb7 Rxb7 {[%emt 0:00:00]} 26. Qa8+ {[%emt 0:00:22]} Bb8 {[%emt 0:00:15]} 27. Bxe4 {[%emt 0:00:06]} dxe4 {[%emt 0:00:05]} 28. Bxb8 {[%emt 0:00:09]} Rxb8 {[%emt 0:00:03]} 29. Qc6+ {[%emt 0:00:15]} 1-0

[Event "FIDE World Cup O12-A 2024"]
[Site "Batumi"]
[Date "2024.06.25"]
[Round "3.6"]
[White "Haresh, Venkata Narayanaswam"]
[Black "Kleschevnikov, Arseny"]
[Result "1-0"]
[ECO "B90"]
[WhiteElo "1728"]
[BlackElo "1895"]
[Annotator "NA RC"]
[PlyCount "149"]
[EventDate "2024.06.23"]
[EventType "swiss"]
[EventCountry "GEO"]
[SourceTitle "playchess.com"]
[Source "ChessBase"]
[SourceQuality "1"]
[TimeControl "5400+30"]

1. e4 {[%emt 0:00:07]} c5 {[%emt 0:00:05]} 2. Nf3 {[%emt 0:00:12]} d6 {[%emt 0:00:04]} 3. d4 {[%emt 0:00:11]} cxd4 {[%emt 0:00:04]} 4. Nxd4 {[%emt 0:00:09]} Nf6 {[%emt 0:00:05]} 5. Nc3 {[%emt 0:00:08]} a6 {[%emt 0:00:03]} 6. h3 {[%emt 0:00:10]} e5 {[%emt 0:03:13]} 7. Nf3 {[%emt 0:00:37]} Be7 {[%emt 0:10:59]} 8. g4 {[%emt 0:00:26]} h6 {[%emt 0:04:28]} 9. Rg1 {[%emt 0:01:20]} Be6 {[%emt 0:14:55]} 10. g5 {[%emt 0:01:00]} hxg5 {[%emt 0:00:04]} 11. Nxg5 {[%emt 0:00:30]} Nc6 {[%emt 0:00:30]} 12. Nxe6 {[%emt 0:08:22]} fxe6 {[%emt 0:00:07]} 13. Rxg7 {[%emt 0:05:11]} Qb6 {[%emt 0:08:39]} 14. Bd2 {[%emt 0:26:36]} O-O-O $11 {[%emt 0:05:38]} 15. Qe2 {[%emt 0:07:37]} Nh5 {[%emt 0:23:01]} 16. Rf7 {[%emt 0:09:41]} Nf4 {[%emt 0:26:35]} 17. Na4 {[%emt 0:11:25]} Qd4 {[%emt 0:00:00]} 18. Bxf4 {[%emt 0:02:27]} Qxa4 {[%emt 0:00:00]} 19. Bd2 {[%emt 0:04:31]} Rh4 {[%emt 0:00:00]} 20. f3 {[%emt 0:02:29]} Rg8 {[%emt 0:00:00]} 21. c3 {[%emt 0:05:16]} d5 {[%emt 0:00:00]} 22. exd5 {[%emt 0:07:16]} exd5 {[%emt 0:00:00]} 23. Qd1 {[%emt 0:02:17]} Qa5 {[%emt 0:00:26]} 24. Qc2 {[%emt 0:01:08]} Rh5 {[%emt 0:01:51]} 25. Rh7 {[%emt 0:01:44]} Bh4+ {[%emt 0:00:34]} 26. Kd1 {[%emt 0:00:41]} Rh8 {[%emt 0:01:14]} 27. Rxh5 {[%emt 0:00:49]} Rxh5 {[%emt 0:00:06]} 28. c4 {[%emt 0:00:38]} Qc5 {[%emt 0:00:18]} 29. Qg6 {[%emt 0:00:54]} Rh8 {[%emt 0:00:40]} 30. Qe6+ {[%emt 0:00:19]} Kb8 {[%emt 0:00:02]} 31. cxd5 {[%emt 0:00:26]} Qf2 {[%emt 0:00:25]} 32. dxc6 {[%emt 0:00:45]} Rd8 {[%emt 0:01:48]} 33. Qxe5+ {[%emt 0:00:47]} Ka7 {[%emt 0:00:03]} 34. Qe2 {[%emt 0:00:24]} Qb6 {[%emt 0:00:23]} 35. Kc1 {[%emt 0:00:49]} Qxc6+ {[%emt 0:00:15]} 36. Bc3 {[%emt 0:00:33]} Bg5+ {[%emt 0:00:18]} 37. Kb1 {[%emt 0:00:31]} Qg6+ {[%emt 0:00:15]} 38. Qe4 {[%emt 0:00:29]} Qxe4+ {[%emt 0:00:15]} 39. fxe4 {[%emt 0:00:01]} Rd1+ {[%emt 0:00:04]} 40. Kc2 {[%emt 0:00:21]} Rxa1 {[%emt 0:00:03]} 41. Bc4 {[%emt 0:00:26]} Rh1 {[%emt 0:00:35]} 42. Be6 {[%emt 0:00:18]} Rh2+ {[%emt 0:00:29]} 43. Kd3 {[%emt 0:00:22]} Bc1 {[%emt 0:00:53]} 44. b4 {[%emt 0:00:35]} Bb2 {[%emt 0:00:16]} 45. Bxb2 {[%emt 0:00:55]} Rxb2 {[%emt 0:00:04]} 46. Kd4 {[%emt 0:00:44]} Kb8 {[%emt 0:00:14]} 47. Ke5 {[%emt 0:00:20]} Kc7 {[%emt 0:00:09]} 48. Kf6 {[%emt 0:00:52]} Rxb4 {[%emt 0:00:38]} 49. e5 {[%emt 0:00:10]} Kd8 {[%emt 0:00:55]} 50. Bf5 {[%emt 0:00:14]} Rb2 {[%emt 0:02:35]} 51. e6 {[%emt 0:00:09]} Re2 {[%emt 0:00:08]} 52. h4 {[%emt 0:00:12]} Ke8 {[%emt 0:01:02]} 53. h5 {[%emt 0:00:06]} Kf8 {[%emt 0:00:40]} 54. h6 {[%emt 0:00:16]} Kg8 {[%emt 0:00:22]} 55. e7 {[%emt 0:00:45]} Rxe7 {[%emt 0:00:40]} 56. Kxe7 {[%emt 0:00:02]} b5 {[%emt 0:00:04]} 57. Kd6 {[%emt 0:00:14]} b4 {[%emt 0:00:37]} 58. Kc5 {[%emt 0:00:07]} a5 {[%emt 0:00:02]} 59. Kb5 {[%emt 0:00:07]} a4 {[%emt 0:00:44]} 60. Kxb4 {[%emt 0:00:08]} Kf7 {[%emt 0:00:03]} 61. h7 {[%emt 0:00:06]} Kg7 {[%emt 0:00:04]} 62. Kxa4 {[%emt 0:00:03]} Kh8 {[%emt 0:00:05]} 63. Kb5 {[%emt 0:00:02]} Kg7 {[%emt 0:00:05]} 64. a4 {[%emt 0:00:03]} Kh8 {[%emt 0:00:04]} 65. a5 {[%emt 0:00:02]} Kg7 {[%emt 0:00:05]} 66. a6 {[%emt 0:00:03]} Kh8 {[%emt 0:00:03]} 67. a7 {[%emt 0:07:22]} Kg7 {[%emt 0:00:02]} 68. h8=Q+ {[%emt 0:00:00]} Kxh8 {[%emt 0:00:05]} 69. a8=Q+ {[%emt 0:00:00]} Kg7 {[%emt 0:00:04]} 70. Qc6 {[%emt 0:00:00]} Kf7 {[%emt 0:00:03]} 71. Qg6+ {[%emt 0:00:00]} Ke7 {[%emt 0:00:03]} 72. Qe6+ {[%emt 0:00:00]} Kf8 {[%emt 0:00:03]} 73. Qd7 {[%emt 0:00:00]} Kg8 {[%emt 0:00:04]} 74. Bg6 {[%emt 0:00:00]} Kf8 {[%emt 0:00:03]} 75. Qf7# {[%emt 0:00:00]} 1-0